[Event "*** Titled Tuesday 3|2 Blitz"]
[Site "Chess.com"]
[Date "2016.01.05"]
[Round "5"]
[White "Fandorine"]
[Black "chessdude"]
[Result "1-0"]
[WhiteElo "2553"]
[BlackElo "2307"]
[TimeControl "180+2"]
[EndTime "11:58:11 PST"]
[Termination "Fandorine won by resignation"]

1. e4 {[%clk 0:03:01.9]} 1... e5 {[%clk 0:02:59]} 2. Nf3 {[%clk 0:03:01.7]} 2...
Nc6 {[%clk 0:02:59.9]} 3. Nc3 {[%clk 0:02:57]} 3... Nf6 {[%clk 0:03:00.2]} 4. g3
{[%clk 0:02:55.9]} 4... Bc5 {[%clk 0:02:57.6]} 5. Bg2 {[%clk 0:02:53.7]} 5... d6
{[%clk 0:02:58.9]} 6. d3 {[%clk 0:02:53.7]} 6... a6 {[%clk 0:02:59.7]} 7. h3
{[%clk 0:02:54.5]} 7... O-O {[%clk 0:03:00.7]} 8. O-O {[%clk 0:02:55.6]} 8... h6
{[%clk 0:03:01.3]} 9. Kh2 {[%clk 0:02:54.9]} 9... Nh7 {[%clk 0:03:00.4]} 10. Be3
{[%clk 0:02:52.3]} 10... Bxe3 {[%clk 0:03:00.8]} 11. fxe3 {[%clk 0:02:53.7]}
11... Ne7 {[%clk 0:02:59.5]} 12. Nh4 {[%clk 0:02:50]} 12... g5 {[%clk
0:02:42.3]} 13. Nf5 {[%clk 0:02:48.8]} 13... Nxf5 {[%clk 0:02:41.4]} 14. exf5
{[%clk 0:02:50.7]} 14... Nf6 {[%clk 0:02:42.5]} 15. Qd2 {[%clk 0:02:35.2]} 15...
Kg7 {[%clk 0:02:41.1]} 16. Rad1 {[%clk 0:02:35.4]} 16... d5 {[%clk 0:02:33.1]}
17. e4 {[%clk 0:02:16.9]} 17... d4 {[%clk 0:02:33.5]} 18. Ne2 {[%clk 0:02:18.2]}
18... c5 {[%clk 0:02:26.5]} 19. b4 {[%clk 0:02:16.7]} 19... cxb4 {[%clk
0:02:16.6]} 20. Qxb4 {[%clk 0:02:16.9]} 20... a5 {[%clk 0:02:11.4]} 21. Qb2
{[%clk 0:02:16.2]} 21... Ra6 {[%clk 0:02:11.1]} 22. c3 {[%clk 0:02:17.4]} 22...
dxc3 {[%clk 0:02:02.5]} 23. Qxc3 {[%clk 0:02:17.7]} 23... Qe7 {[%clk 0:01:54.7]}
24. d4 {[%clk 0:02:18.3]} 24... exd4 {[%clk 0:01:53.3]} 25. Qxd4 {[%clk
0:02:17.3]} 25... Re8 {[%clk 0:01:53]} 26. Rc1 {[%clk 0:02:13.2]} 26... Rc6
{[%clk 0:01:52.2]} 27. e5 {[%clk 0:02:00]} 27... Qxe5 {[%clk 0:01:50.9]} 28.
Bxc6 {[%clk 0:02:00.3]} 28... bxc6 {[%clk 0:01:46.9]} 29. Qxe5 {[%clk
0:01:59.6]} 29... Rxe5 {[%clk 0:01:47.4]} 30. Rce1 {[%clk 0:01:38.5]} 30... Ba6
{[%clk 0:01:24.3]} 31. Ng1 {[%clk 0:01:27.4]} 31... Rd5 {[%clk 0:01:20.1]} 32.
Rf2 {[%clk 0:01:27.9]} 32... c5 {[%clk 0:01:17.1]} 33. Nf3 {[%clk 0:01:18.1]}
33... Bd3 {[%clk 0:01:12.7]} 34. Re5 {[%clk 0:01:16.5]} 34... Rxe5 {[%clk
0:01:04.4]} 35. Nxe5 {[%clk 0:01:17.1]} 35... Ne4 {[%clk 0:01:05.9]} 36. Nxd3
{[%clk 0:01:14.5]} 36... c4 {[%clk 0:01:02.6]} 37. Re2 {[%clk 0:01:14.6]} 1-0

[Event "*** Titled Tuesday 3|2 Blitz"]
[Site "Chess.com"]
[Date "2016.01.05"]
[Round "5"]
[White "cool64chess"]
[Black "THORK"]
[Result "1-0"]
[WhiteElo "2227"]
[BlackElo "2156"]
[TimeControl "180+2"]
[EndTime "11:58:16 PST"]
[Termination "cool64chess won by resignation"]

1. d4 {[%clk 0:03:01.9]} 1... f5 {[%clk 0:02:59.5]} 2. e4 {[%clk 0:03:02.1]}
2... fxe4 {[%clk 0:03:00]} 3. Nc3 {[%clk 0:03:02.9]} 3... Nf6 {[%clk 0:03:01.3]}
4. Bg5 {[%clk 0:03:03.4]} 4... Nc6 {[%clk 0:02:49.2]} 5. d5 {[%clk 0:02:57.4]}
5... Ne5 {[%clk 0:02:49.9]} 6. Qe2 {[%clk 0:02:57]} 6... Nf7 {[%clk 0:02:48.2]}
7. Bh4 {[%clk 0:02:47.8]} 7... c6 {[%clk 0:02:41.5]} 8. O-O-O {[%clk 0:02:41.7]}
8... Qa5 {[%clk 0:02:36.5]} 9. Kb1 {[%clk 0:02:37.6]} 9... Nxd5 {[%clk
0:02:25.9]} 10. Nxe4 {[%clk 0:02:19.4]} 10... e5 {[%clk 0:01:33.6]} 11. c4
{[%clk 0:02:13.6]} 11... Nf4 {[%clk 0:01:34.5]} 12. Qe3 {[%clk 0:02:03.9]} 12...
Ne6 {[%clk 0:01:30.9]} 13. Bd3 {[%clk 0:01:57.2]} 13... d5 {[%clk 0:01:26.8]}
14. Ng5 {[%clk 0:01:42]} 14... Nexg5 {[%clk 0:01:23.6]} 15. Bxg5 {[%clk
0:01:42.6]} 15... Bc5 {[%clk 0:01:17.5]} 16. Qg3 {[%clk 0:01:40]} 16... O-O
{[%clk 0:01:00.6]} 17. Bf6 {[%clk 0:01:33.8]} 17... g5 {[%clk 0:00:44.9]} 18.
Bxg5 {[%clk 0:01:26.9]} 18... Nxg5 {[%clk 0:00:44.5]} 19. Qxg5+ {[%clk 0:01:27]}
19... Kh8 {[%clk 0:00:41.4]} 20. Qxe5+ {[%clk 0:01:24.1]} 20... Kg8 {[%clk
0:00:42.4]} 21. cxd5 {[%clk 0:00:56.2]} 21... cxd5 {[%clk 0:00:26.5]} 22. Qxd5+
{[%clk 0:00:55.1]} 22... Kg7 {[%clk 0:00:27]} 23. Qg5+ {[%clk 0:00:52]} 23...
Kh8 {[%clk 0:00:21.4]} 24. Qe5+ {[%clk 0:00:52]} 24... Kg8 {[%clk 0:00:22.2]}
25. Bc4+ {[%clk 0:00:52.6]} 25... Rf7 {[%clk 0:00:23.1]} 26. Qe8+ {[%clk
0:00:52.6]} 1-0

[Event "*** Titled Tuesday 3|2 Blitz"]
[Site "Chess.com"]
[Date "2016.01.05"]
[Round "5"]
[White "alturas_pacificas"]
[Black "chorejason"]
[Result "0-1"]
[WhiteElo "2082"]
[BlackElo "1900"]
[TimeControl "180+2"]
[EndTime "11:58:31 PST"]
[Termination "chorejason won by checkmate"]

1. d4 {[%clk 0:02:59.1]} 1... Nf6 {[%clk 0:03:00.8]} 2. Bf4 {[%clk 0:02:55.9]}
2... g6 {[%clk 0:03:00.3]} 3. e3 {[%clk 0:02:56.6]} 3... Bg7 {[%clk 0:03:01.5]}
4. Be2 {[%clk 0:02:57.9]} 4... O-O {[%clk 0:03:02.6]} 5. Nf3 {[%clk 0:02:59.5]}
5... c5 {[%clk 0:03:02.8]} 6. O-O {[%clk 0:03:00.6]} 6... d6 {[%clk 0:03:02.9]}
7. c3 {[%clk 0:03:01.7]} 7... Nc6 {[%clk 0:02:57.6]} 8. h3 {[%clk 0:03:02.7]}
8... Qb6 {[%clk 0:02:58.7]} 9. Qb3 {[%clk 0:03:03]} 9... Na5 {[%clk 0:02:57.4]}
10. Qxb6 {[%clk 0:03:03.7]} 10... axb6 {[%clk 0:02:58.5]} 11. Nbd2 {[%clk
0:03:05.3]} 11... Be6 {[%clk 0:02:45.2]} 12. a3 {[%clk 0:03:06]} 12... d5 {[%clk
0:02:29.4]} 13. Ne5 {[%clk 0:02:03.2]} 13... c4 {[%clk 0:02:27.4]} 14. f3 {[%clk
0:02:01]} 14... Nh5 {[%clk 0:02:13.8]} 15. Bh2 {[%clk 0:02:01.3]} 15... Bh6
{[%clk 0:01:40.1]} 16. f4 {[%clk 0:02:00.4]} 16... f6 {[%clk 0:01:41.3]} 17. Ng4
{[%clk 0:01:57.6]} 17... Bg7 {[%clk 0:01:36.6]} 18. Nf2 {[%clk 0:01:51.4]} 18...
f5 {[%clk 0:01:33.9]} 19. Bxh5 {[%clk 0:01:51.5]} 19... gxh5 {[%clk 0:01:34.7]}
20. Nf3 {[%clk 0:01:49]} 20... Bf6 {[%clk 0:01:32.7]} 21. Kh1 {[%clk 0:01:49]}
21... Nb3 {[%clk 0:01:33.7]} 22. Rad1 {[%clk 0:01:49.3]} 22... Kf7 {[%clk
0:01:33.6]} 23. Nd2 {[%clk 0:01:14.1]} 23... Nxd2 {[%clk 0:01:31.3]} 24. Rxd2
{[%clk 0:01:15.1]} 24... Rg8 {[%clk 0:01:32]} 25. Rg1 {[%clk 0:01:10.9]} 25...
h4 {[%clk 0:01:32.6]} 26. Rdd1 {[%clk 0:01:11.1]} 26... Rg7 {[%clk 0:01:33.4]}
27. g3 {[%clk 0:01:00.9]} 27... Rag8 {[%clk 0:01:20.6]} 28. gxh4 {[%clk
0:00:59.3]} 28... Bxh4 {[%clk 0:01:21.7]} 29. Rxg7+ {[%clk 0:00:54.7]} 29...
Rxg7 {[%clk 0:01:22.9]} 30. Rf1 {[%clk 0:00:55.3]} 30... Kf6 {[%clk 0:01:17.6]}
31. a4 {[%clk 0:00:17.6]} 31... Bf7 {[%clk 0:01:16.3]} 32. Nd1 {[%clk
0:00:12.2]} 32... Bh5 {[%clk 0:01:16.6]} 33. Nf2 {[%clk 0:00:12.3]} 33... Bf3#
{[%clk 0:01:16.9]} 0-1

[Event "*** Titled Tuesday 3|2 Blitz"]
[Site "Chess.com"]
[Date "2016.01.05"]
[Round "5"]
[White "AndroQueen"]
[Black "gumersindo"]
[Result "1-0"]
[WhiteElo "2458"]
[BlackElo "2284"]
[TimeControl "180+2"]
[EndTime "11:58:44 PST"]
[Termination "AndroQueen won by checkmate"]

1. e4 {[%clk 0:03:01.9]} 1... c6 {[%clk 0:02:59.9]} 2. d4 {[%clk 0:03:02]} 2...
d5 {[%clk 0:03:01.3]} 3. Nd2 {[%clk 0:03:03.7]} 3... dxe4 {[%clk 0:03:01.7]} 4.
Nxe4 {[%clk 0:03:05.6]} 4... Bf5 {[%clk 0:03:03.2]} 5. Ng3 {[%clk 0:03:06.8]}
5... Bg6 {[%clk 0:03:04.4]} 6. h4 {[%clk 0:03:08.4]} 6... h6 {[%clk 0:03:05.4]}
7. Nf3 {[%clk 0:03:09.4]} 7... Nd7 {[%clk 0:03:06]} 8. Bd3 {[%clk 0:03:10.4]}
8... Bxd3 {[%clk 0:03:04.8]} 9. Qxd3 {[%clk 0:03:12.3]} 9... Ngf6 {[%clk
0:03:06.1]} 10. Bd2 {[%clk 0:03:13.2]} 10... e6 {[%clk 0:03:07.3]} 11. O-O-O
{[%clk 0:03:13.5]} 11... Be7 {[%clk 0:03:02.8]} 12. Qe2 {[%clk 0:03:13.1]} 12...
O-O {[%clk 0:03:01.9]} 13. Nf1 {[%clk 0:03:13.9]} 13... Qc7 {[%clk 0:02:49.2]}
14. g4 {[%clk 0:03:10.2]} 14... Nxg4 {[%clk 0:02:48.7]} 15. Rg1 {[%clk
0:03:09.7]} 15... h5 {[%clk 0:02:46.2]} 16. Ne3 {[%clk 0:02:04.3]} 16... Ndf6
{[%clk 0:02:23.7]} 17. Nxg4 {[%clk 0:01:51.9]} 17... Nxg4 {[%clk 0:02:20.5]} 18.
Ne5 {[%clk 0:01:52.8]} 18... Bf6 {[%clk 0:01:22.1]} 19. Nxg4 {[%clk 0:01:49]}
19... hxg4 {[%clk 0:01:22]} 20. Qxg4 {[%clk 0:01:42.8]} 20... Rad8 {[%clk
0:01:21]} 21. Bh6 {[%clk 0:01:36]} 21... g6 {[%clk 0:01:02.9]} 22. h5 {[%clk
0:01:36.9]} 22... Bg7 {[%clk 0:01:00.8]} 23. Bxg7 {[%clk 0:01:12.7]} 23... Kxg7
{[%clk 0:01:01.3]} 24. hxg6 {[%clk 0:01:14.4]} 24... f5 {[%clk 0:01:01.3]} 25.
Qg5 {[%clk 0:00:59.2]} 25... Rh8 {[%clk 0:00:54.9]} 26. Rge1 {[%clk 0:00:53.8]}
26... Rde8 {[%clk 0:00:48.1]} 27. Rh1 {[%clk 0:00:37.1]} 27... Qd6 {[%clk
0:00:42]} 28. c3 {[%clk 0:00:31.1]} 28... Qd5 {[%clk 0:00:37.3]} 29. Rxh8 {[%clk
0:00:31.8]} 29... Rxh8 {[%clk 0:00:33.2]} 30. Qe7+ {[%clk 0:00:30.3]} 30... Kg8
{[%clk 0:00:33.8]} 31. Qf7# {[%clk 0:00:31.2]} 1-0

[Event "*** Titled Tuesday 3|2 Blitz"]
[Site "Chess.com"]
[Date "2016.01.05"]
[Round "5"]
[White "GianmarcoVaR"]
[Black "AndrewMcStone"]
[Result "1-0"]
[WhiteElo "2284"]
[BlackElo "1983"]
[TimeControl "180+2"]
[EndTime "11:58:46 PST"]
[Termination "GianmarcoVaR won on time"]

1. d4 {[%clk 0:03:01.9]} 1... e6 {[%clk 0:03:00.3]} 2. Nf3 {[%clk 0:03:03.7]}
2... f5 {[%clk 0:03:01.7]} 3. e3 {[%clk 0:03:05.3]} 3... Nf6 {[%clk 0:03:03.2]}
4. c4 {[%clk 0:03:06.9]} 4... b6 {[%clk 0:03:00.8]} 5. Nc3 {[%clk 0:03:07]} 5...
Bb4 {[%clk 0:03:01]} 6. Qc2 {[%clk 0:03:03.5]} 6... Bb7 {[%clk 0:03:02.1]} 7. a3
{[%clk 0:02:55.4]} 7... Bxc3+ {[%clk 0:02:59.9]} 8. Qxc3 {[%clk 0:02:56.6]} 8...
Ne4 {[%clk 0:02:55.1]} 9. Qc2 {[%clk 0:02:56.4]} 9... O-O {[%clk 0:02:52.1]} 10.
Be2 {[%clk 0:02:57.7]} 10... d6 {[%clk 0:02:40.8]} 11. O-O {[%clk 0:02:58.3]}
11... Nd7 {[%clk 0:02:38.5]} 12. Ne1 {[%clk 0:02:34.8]} 12... Qh4 {[%clk
0:02:11.5]} 13. f3 {[%clk 0:02:32.9]} 13... Ng5 {[%clk 0:02:11]} 14. Bd3 {[%clk
0:01:36.9]} 14... Rf6 {[%clk 0:01:59.6]} 15. b4 {[%clk 0:00:56.6]} 15... Rh6
{[%clk 0:01:19.6]} 16. g3 {[%clk 0:00:56.5]} 16... Qh5 {[%clk 0:01:10.7]} 17. d5
{[%clk 0:00:49.9]} 17... Nh3+ {[%clk 0:00:44.1]} 18. Kh1 {[%clk 0:00:45.4]}
18... exd5 {[%clk 0:00:37.5]} 19. Bxf5 {[%clk 0:00:42.4]} 19... Ne5 {[%clk
0:00:21.1]} 20. cxd5 {[%clk 0:00:41.1]} 20... Bxd5 {[%clk 0:00:18.5]} 21. e4
{[%clk 0:00:42.4]} 21... Bb7 {[%clk 0:00:08.2]} 22. Bxh6 {[%clk 0:00:29.5]}
22... Qxh6 {[%clk 0:00:07.7]} 23. Qxc7 {[%clk 0:00:30.8]} 1-0

[Event "*** Titled Tuesday 3|2 Blitz"]
[Site "Chess.com"]
[Date "2016.01.05"]
[Round "5"]
[White "Anton_Demchenko"]
[Black "Vorenus_Lucius"]
[Result "1-0"]
[WhiteElo "2673"]
[BlackElo "2459"]
[TimeControl "180+2"]
[EndTime "11:58:55 PST"]
[Termination "Anton_Demchenko won by resignation"]

1. e4 {[%clk 0:03:01.9]} 1... e5 {[%clk 0:03:01]} 2. Nf3 {[%clk 0:03:02.7]} 2...
Nc6 {[%clk 0:03:02.2]} 3. Bc4 {[%clk 0:03:04.3]} 3... Nf6 {[%clk 0:03:02.6]} 4.
d3 {[%clk 0:03:05.5]} 4... Bc5 {[%clk 0:03:02.9]} 5. Bg5 {[%clk 0:03:05.4]} 5...
h6 {[%clk 0:02:57.5]} 6. Bh4 {[%clk 0:03:06.5]} 6... d6 {[%clk 0:02:47.2]} 7. c3
{[%clk 0:03:06.4]} 7... Be6 {[%clk 0:02:14.4]} 8. Nbd2 {[%clk 0:03:06.4]} 8...
Qe7 {[%clk 0:02:07.6]} 9. O-O {[%clk 0:03:04.1]} 9... g5 {[%clk 0:02:05.5]} 10.
Bg3 {[%clk 0:03:04.9]} 10... a5 {[%clk 0:01:06.4]} 11. a3 {[%clk 0:02:52]} 11...
Kf8 {[%clk 0:01:04.5]} 12. b4 {[%clk 0:02:50.6]} 12... Bb6 {[%clk 0:01:05.3]}
13. b5 {[%clk 0:02:48.4]} 13... Nb8 {[%clk 0:01:03.7]} 14. a4 {[%clk 0:02:32.4]}
14... Nbd7 {[%clk 0:01:04.3]} 15. Qc2 {[%clk 0:02:27.1]} 15... Nh5 {[%clk
0:01:02.9]} 16. Kh1 {[%clk 0:02:28.5]} 16... Nf4 {[%clk 0:01:01.3]} 17. d4
{[%clk 0:02:26.2]} 17... f6 {[%clk 0:01:02]} 18. Qb3 {[%clk 0:02:18]} 18... Bxc4
{[%clk 0:00:59.9]} 19. Nxc4 {[%clk 0:02:13]} 19... exd4 {[%clk 0:00:54.9]} 20.
Bxf4 {[%clk 0:02:13.2]} 20... gxf4 {[%clk 0:00:55.2]} 21. cxd4 {[%clk
0:01:47.9]} 21... Qxe4 {[%clk 0:00:54.1]} 22. Rae1 {[%clk 0:01:47.7]} 22... Qd5
{[%clk 0:00:52.8]} 23. Qc2 {[%clk 0:01:48.9]} 23... Rg8 {[%clk 0:00:49.5]} 24.
Nxb6 {[%clk 0:01:38.6]} 24... cxb6 {[%clk 0:00:43.4]} 25. Qh7 {[%clk 0:01:39.4]}
25... Rg7 {[%clk 0:00:33.4]} 26. Qxh6 {[%clk 0:01:33.1]} 26... Kf7 {[%clk
0:00:33.8]} 27. Re7+ {[%clk 0:01:28.4]} 27... Kxe7 {[%clk 0:00:34.6]} 28. Qxg7+
{[%clk 0:01:29.7]} 28... Qf7 {[%clk 0:00:26.6]} 29. Re1+ {[%clk 0:01:29.9]}
29... Ne5 {[%clk 0:00:27.8]} 30. Qh6 {[%clk 0:01:22.3]} 30... Rg8 {[%clk
0:00:23.9]} 31. Qxf4 {[%clk 0:01:06]} 31... Qg6 {[%clk 0:00:11.3]} 32. g3 {[%clk
0:01:04.7]} 32... Qh5 {[%clk 0:00:12.2]} 33. dxe5 {[%clk 0:01:03.9]} 33... dxe5
{[%clk 0:00:12.3]} 34. Nxe5 {[%clk 0:01:04.8]} 1-0

[Event "*** Titled Tuesday 3|2 Blitz"]
[Site "Chess.com"]
[Date "2016.01.05"]
[Round "5"]
[White "ftorodent"]
[Black "stepanosinovsky"]
[Result "0-1"]
[WhiteElo "2185"]
[BlackElo "2242"]
[TimeControl "180+2"]
[EndTime "11:59:01 PST"]
[Termination "stepanosinovsky won by checkmate"]

1. d4 {[%clk 0:03:01.9]} 1... Nf6 {[%clk 0:03:00.2]} 2. c4 {[%clk 0:03:02.2]}
2... g6 {[%clk 0:03:01.7]} 3. Nc3 {[%clk 0:03:02]} 3... Bg7 {[%clk 0:03:02.9]}
4. e4 {[%clk 0:03:02.3]} 4... O-O {[%clk 0:03:02.3]} 5. Nf3 {[%clk 0:03:02.8]}
5... d6 {[%clk 0:03:02.6]} 6. Be2 {[%clk 0:03:03.8]} 6... e5 {[%clk 0:03:02.7]}
7. O-O {[%clk 0:03:03.8]} 7... Nc6 {[%clk 0:03:03.4]} 8. d5 {[%clk 0:03:04.6]}
8... Ne7 {[%clk 0:03:03.8]} 9. Ne1 {[%clk 0:03:05.6]} 9... Nd7 {[%clk
0:03:02.8]} 10. Nd3 {[%clk 0:03:04.7]} 10... f5 {[%clk 0:03:02]} 11. Bd2 {[%clk
0:03:05.6]} 11... Nf6 {[%clk 0:02:51.4]} 12. f3 {[%clk 0:03:03.8]} 12... f4
{[%clk 0:02:50.5]} 13. c5 {[%clk 0:03:03.4]} 13... g5 {[%clk 0:02:49.1]} 14. Rc1
{[%clk 0:03:01.4]} 14... Ng6 {[%clk 0:02:25.6]} 15. cxd6 {[%clk 0:02:51.9]}
15... cxd6 {[%clk 0:02:27.5]} 16. Nf2 {[%clk 0:02:52.4]} 16... h5 {[%clk
0:02:22.7]} 17. h3 {[%clk 0:02:51.9]} 17... Rf7 {[%clk 0:02:20.8]} 18. Qb3
{[%clk 0:02:29.8]} 18... Nh4 {[%clk 0:02:11.4]} 19. Rc2 {[%clk 0:02:25.9]} 19...
Bf8 {[%clk 0:02:10.7]} 20. Rfc1 {[%clk 0:01:53.2]} 20... a6 {[%clk 0:02:09.3]}
21. Na4 {[%clk 0:01:48]} 21... b5 {[%clk 0:02:08.7]} 22. Nb6 {[%clk 0:01:35.8]}
22... Qxb6 {[%clk 0:02:02.6]} 23. Rxc8 {[%clk 0:01:36.4]} 23... Rxc8 {[%clk
0:02:00.8]} 24. Rxc8 {[%clk 0:01:36.8]} 24... g4 {[%clk 0:02:01.3]} 25. hxg4
{[%clk 0:01:11.4]} 25... hxg4 {[%clk 0:02:00.5]} 26. fxg4 {[%clk 0:01:12.4]}
26... Nxe4 {[%clk 0:01:52.5]} 27. Be1 {[%clk 0:01:00.2]} 27... Ng3 {[%clk
0:01:44.9]} 28. Bf1 {[%clk 0:00:44.4]} 28... Nhf5 {[%clk 0:00:52]} 29. Rc6
{[%clk 0:00:35]} 29... Rh7 {[%clk 0:00:50.1]} 30. Rxb6 {[%clk 0:00:29.9]} 30...
Ne3 {[%clk 0:00:35.5]} 31. Bd3 {[%clk 0:00:30.3]} 31... e4 {[%clk 0:00:29.2]}
32. Bxe4 {[%clk 0:00:29]} 32... Ne2# {[%clk 0:00:29.9]} 0-1

[Event "*** Titled Tuesday 3|2 Blitz"]
[Site "Chess.com"]
[Date "2016.01.05"]
[Round "5"]
[White "maciek_92"]
[Black "rdclayton"]
[Result "1-0"]
[WhiteElo "2336"]
[BlackElo "2113"]
[TimeControl "180+2"]
[EndTime "11:59:04 PST"]
[Termination "maciek_92 won by resignation"]

1. e4 {[%clk 0:02:53.7]} 1... e5 {[%clk 0:02:58.7]} 2. Nf3 {[%clk 0:02:54.2]}
2... Nc6 {[%clk 0:02:58.7]} 3. Bb5 {[%clk 0:02:53.5]} 3... f5 {[%clk 0:02:59.4]}
4. Nc3 {[%clk 0:02:46.5]} 4... fxe4 {[%clk 0:02:59.2]} 5. Nxe4 {[%clk
0:02:45.7]} 5... Nf6 {[%clk 0:03:00.4]} 6. Qe2 {[%clk 0:02:34.9]} 6... d5 {[%clk
0:02:51.7]} 7. Nxf6+ {[%clk 0:02:30.7]} 7... gxf6 {[%clk 0:02:53.6]} 8. d4
{[%clk 0:02:31.9]} 8... Bg7 {[%clk 0:02:54.8]} 9. dxe5 {[%clk 0:02:14.7]} 9...
O-O {[%clk 0:02:55.7]} 10. O-O {[%clk 0:02:13.6]} 10... Nxe5 {[%clk 0:02:35]}
11. h3 {[%clk 0:02:05.2]} 11... Bf5 {[%clk 0:02:24.7]} 12. Bf4 {[%clk
0:01:59.2]} 12... Be4 {[%clk 0:02:20.1]} 13. Nd4 {[%clk 0:01:56.2]} 13... c6
{[%clk 0:02:15.1]} 14. Bd3 {[%clk 0:01:47.2]} 14... Bxd3 {[%clk 0:01:59.5]} 15.
cxd3 {[%clk 0:01:47.6]} 15... Qd7 {[%clk 0:01:56.2]} 16. Rad1 {[%clk 0:01:37.5]}
16... c5 {[%clk 0:01:22.7]} 17. Nb3 {[%clk 0:01:37.5]} 17... b6 {[%clk
0:01:09.6]} 18. Bg3 {[%clk 0:01:15.8]} 18... Rae8 {[%clk 0:01:09.2]} 19. Qh5
{[%clk 0:01:03.1]} 19... f5 {[%clk 0:01:10.1]} 20. d4 {[%clk 0:01:00.7]} 20...
f4 {[%clk 0:00:48.5]} 21. Bh2 {[%clk 0:00:57.6]} 21... Ng6 {[%clk 0:00:45]} 22.
dxc5 {[%clk 0:00:57]} 22... d4 {[%clk 0:00:41.3]} 23. c6 {[%clk 0:00:52.8]}
23... Qd6 {[%clk 0:00:38.7]} 24. Qb5 {[%clk 0:00:52.5]} 24... Ne5 {[%clk
0:00:30.7]} 25. Nxd4 {[%clk 0:00:50]} 25... f3 {[%clk 0:00:19.3]} 26. Bxe5
{[%clk 0:00:39.5]} 26... Rxe5 {[%clk 0:00:17.4]} 27. Qc4+ {[%clk 0:00:32.5]}
27... Kh8 {[%clk 0:00:18.1]} 28. Nxf3 {[%clk 0:00:33.2]} 28... Qe6 {[%clk
0:00:12.5]} 29. Nxe5 {[%clk 0:00:33.2]} 1-0

[Event "*** Titled Tuesday 3|2 Blitz"]
[Site "Chess.com"]
[Date "2016.01.05"]
[Round "5"]
[White "wilju"]
[Black "RitchieBlackmore"]
[Result "0-1"]
[WhiteElo "1832"]
[BlackElo "2418"]
[TimeControl "180+2"]
[EndTime "11:59:09 PST"]
[Termination "RitchieBlackmore won by resignation"]

1. e4 {[%clk 0:03:01.9]} 1... c5 {[%clk 0:02:55.9]} 2. Nf3 {[%clk 0:03:01.1]}
2... g6 {[%clk 0:02:57.7]} 3. d4 {[%clk 0:03:01.1]} 3... cxd4 {[%clk 0:02:56.9]}
4. Nxd4 {[%clk 0:02:58.9]} 4... Bg7 {[%clk 0:02:58.5]} 5. Nc3 {[%clk 0:02:59]}
5... d6 {[%clk 0:02:59.7]} 6. Be3 {[%clk 0:02:59]} 6... Nf6 {[%clk 0:02:59.9]}
7. Be2 {[%clk 0:02:58.6]} 7... Bd7 {[%clk 0:02:57.3]} 8. O-O {[%clk 0:02:58.6]}
8... Nc6 {[%clk 0:02:58.9]} 9. Qd2 {[%clk 0:02:57.9]} 9... O-O {[%clk
0:02:57.6]} 10. f3 {[%clk 0:02:51.5]} 10... Ne5 {[%clk 0:02:57.5]} 11. h3 {[%clk
0:02:41.1]} 11... Rc8 {[%clk 0:02:58.1]} 12. b3 {[%clk 0:02:28.4]} 12... Nh5
{[%clk 0:02:56.4]} 13. Kh2 {[%clk 0:02:07.9]} 13... Nc6 {[%clk 0:02:54.6]} 14.
Nd5 {[%clk 0:02:03]} 14... Bxd4 {[%clk 0:02:52.1]} 15. Bxd4 {[%clk 0:02:02.1]}
15... Nxd4 {[%clk 0:02:54]} 16. Qxd4 {[%clk 0:02:02.3]} 16... e6 {[%clk
0:02:55.3]} 17. Nb4 {[%clk 0:01:53.6]} 17... a5 {[%clk 0:02:55.2]} 18. Nd3
{[%clk 0:01:51.3]} 18... Rxc2 {[%clk 0:02:55.9]} 19. Bd1 {[%clk 0:01:50.4]}
19... e5 {[%clk 0:02:49]} 20. Qxd6 {[%clk 0:01:48]} 20... Rxg2+ {[%clk
0:02:46.6]} 21. Kxg2 {[%clk 0:01:43.2]} 21... Bxh3+ {[%clk 0:02:46.8]} 22. Kxh3
{[%clk 0:01:38.2]} 22... Qxd6 {[%clk 0:02:48.7]} 23. Be2 {[%clk 0:01:38.4]}
23... Rd8 {[%clk 0:02:47.9]} 24. Rad1 {[%clk 0:01:36]} 24... Qf6 {[%clk
0:02:49]} 25. Kg2 {[%clk 0:01:34.1]} 25... Qg5+ {[%clk 0:02:49.1]} 26. Kf2
{[%clk 0:01:34.4]} 26... Qh4+ {[%clk 0:02:46.8]} 27. Ke3 {[%clk 0:01:34.3]}
27... Nf4 {[%clk 0:02:43.6]} 28. Nxf4 {[%clk 0:01:30.4]} 28... Qxf4+ {[%clk
0:02:44.3]} 29. Kf2 {[%clk 0:01:29.1]} 29... Rd4 {[%clk 0:02:45.4]} 30. Rxd4
{[%clk 0:01:27.8]} 30... exd4 {[%clk 0:02:46.7]} 31. Rd1 {[%clk 0:01:28.5]}
31... Qe3+ {[%clk 0:02:46.8]} 32. Ke1 {[%clk 0:01:27.9]} 32... h5 {[%clk
0:02:45.2]} 33. Rd3 {[%clk 0:01:24.2]} 33... Qg1+ {[%clk 0:02:46.4]} 34. Kd2
{[%clk 0:01:22.7]} 34... h4 {[%clk 0:02:48]} 35. f4 {[%clk 0:01:15.2]} 35... Qa1
{[%clk 0:02:48.8]} 36. Bf3 {[%clk 0:01:11.4]} 36... Qxa2+ {[%clk 0:02:49.7]} 37.
Kd1 {[%clk 0:01:06]} 37... h3 {[%clk 0:02:50]} 38. e5 {[%clk 0:01:05.1]} 38...
h2 {[%clk 0:02:49.3]} 39. Bxb7 {[%clk 0:01:04.6]} 39... Qa1+ {[%clk 0:02:47.5]}
40. Kd2 {[%clk 0:01:03.5]} 40... h1=Q {[%clk 0:02:48]} 41. Bxh1 {[%clk
0:01:01.6]} 41... Qxh1 {[%clk 0:02:49.9]} 42. Rxd4 {[%clk 0:01:02.3]} 42... Qb1
{[%clk 0:02:45]} 43. Kc3 {[%clk 0:00:54.2]} 43... Qa1+ {[%clk 0:02:43.6]} 44.
Kc4 {[%clk 0:00:53.4]} 44... Kg7 {[%clk 0:02:45]} 45. Kd5 {[%clk 0:00:50.8]}
45... Kh6 {[%clk 0:02:41.6]} 46. Rd3 {[%clk 0:00:44]} 46... Kh5 {[%clk
0:02:39.3]} 47. e6 {[%clk 0:00:37]} 47... Qh1+ {[%clk 0:02:36.9]} 48. Ke5 {[%clk
0:00:28.9]} 48... fxe6 {[%clk 0:02:37.7]} 49. Kxe6 {[%clk 0:00:25.9]} 49... Qe4+
{[%clk 0:02:38.5]} 0-1